Cogmind - Beta 10.2 *** ADVENTURER MODE // 2020.11.04 @ 12:12:08 // Halloween2020/ForbiddenLore Player: Kurtz Result: Destroyed by Z-Imprinter with Zionite Laser-M Performance ------------- Evolutions (1) 500 Regions Visited (6) 1200 Robots Destroyed (5) 25 Value Destroyed (50) 50 Prototype IDs (1) 20 Alien Tech Used (0) 0 Bonus (337) 337 TOTAL SCORE: 2132 Bonus ------- Follower Combat Kills 37 Met Imprinter 300 Cogmind --------- Core Integrity 0/400 Matter 300/300 Energy 99/100 System Corruption 0% Temperature Cool (18) Movement Core (50) Location -7/Deep Caves Parts ------- > --- POWER (1) -------- (None) > --- PROPULSION (3) --- (None) > --- UTILITY (2) ------ (None) > --- WEAPON (3) ------- (None) > --- INVENTORY (4) ---- Improved Shield Generator Decoy Drone Bay (15/16) Self-destruct Interrupter (50) Peak State ------------ > --- POWER ------------ Micro Nuclear Core > --- PROPULSION ------- (None) > --- UTILITY ---------- Decoy Drone Bay > --- WEAPON ----------- (None) > --- INVENTORY -------- (None) [Rating: 18] Favorites ----------- Power Micro Nuclear Core Engine Ion Engine Power Core Micro Nuclear Core Propulsion Aluminum Leg Leg Aluminum Leg Hover Unit Improved Hover Unit Utility Weight Redist. System Device Weight Redist. System Storage Small Storage Unit Processor Enhanced Optical Array Weapon Enhanced Flamer Special Weapon Enhanced Flamer Impact Weapon Makeshift Hammer Build | -11 -10 -10 -9 -9 -7 -7 ------- Run | Scr Mat Min Mat Min Zio Dee Slots Evolved 2 | . . . 2 . . . Power . | . . . . . . . Propulsion 1 | . . . 1 . . . Utility . | . . . . . . . Weapon 1 | . . . 1 . . . Parts Attached 13 | 4 . . 2 5 2 . Power 2 | 1 . . . 1 . . Engine 1 | 1 . . . . . . Core 1 | . . . . 1 . . Reactor . | . . . . . . . Propulsion 3 | 2 . . 1 . . . Treads . | . . . . . . . Leg 2 | 2 . . . . . . Wheel . | . . . . . . . Hover 1 | . . . 1 . . . Flight . | . . . . . . . Utility 6 | 1 . . 1 4 . . Device 4 | . . . 1 3 . . Storage 1 | 1 . . . . . . Processor 1 | . . . . 1 . . Hackware . | . . . . . . . Protection . | . . . . . . . Artifact . | . . . . . . . Weapon 2 | . . . . . 2 . Energy Gun . | . . . . . . . Energy Cannon . | . . . . . . . Ballistic Gun . | . . . . . . . Ballistic Cannon . | . . . . . . . Launcher . | . . . . . . . Special Weapon 1 | . . . . . 1 . Impact Weapon 1 | . . . . . 1 . Slashing Weapon . | . . . . . . . Piercing Weapon . | . . . . . . . Special Melee Weapon . | . . . . . . . Unidentified Prototypes 1 | . . . . 1 . . Parts Lost 10 | . . 3 2 . . 5 Power 2 | . . 1 . . . 1 Propulsion 3 | . . 2 1 . . . Utility 3 | . . . 1 . . 2 Weapon 2 | . . . . . . 2 Highest Loss Streak 5 | . . 3 2 . . 5 Average Slot Usage (%) 40 | . 57 19 24 27 50 50 Engine 1 | . 14 1 . . . . Core 7 | . . . . 10 11 9 Leg 2 | . 28 3 . . . . Hover 1 | . . . 6 . . . Device 14 | . . . 6 11 22 20 Storage 4 | . 14 14 10 . . . Special Weapon 5 | . . . . . 9 10 Impact Weapon 4 | . . . . . 8 11 Naked Turns . | . . . . . . . Heaviest Build 20 | 9 9 9 4 20 12 12 Greatest Support 20 | 20 20 10 14 9 9 9 Greatest Overweight (x) 6 | . . 1 1 6 1 1 Average Overweight (x) . | . . . . . . . Largest Inventory Capacity 6 | 6 6 6 6 4 4 4 Average Capacity 4 | 5 6 6 5 4 4 4 Most Carried 4 | 4 . . 1 4 4 4 Average Carried 1 | . . . . . 3 4 Final Capacity 6 | 6 6 6 4 4 4 4 Final Carried 4 | . . . . 2 4 4 Class Distribution -------------------- 100% | Mutant Dominant Class ---------------- Mutant | -10/Materials Mutant | -10/Mines Mutant | -9/Materials Mutant | -9/Mines Mutant | -7/Zion Mutant | -7/Deep Caves Resources | -11 -10 -10 -9 -9 -7 -7 ----------- Run | Scr Mat Min Mat Min Zio Dee Matter Collected 269 | 206 . . . 40 23 . Remotely . | . . . . . . . Salvage Created 100 | . 40 60 . . . . Parts 16 | . 7 9 . . . . Haulers Intercepted . | . . . . . . . Recyclers Shooed . | . . . . . . . Parts Field Recycled . | . . . . . . . Retrieved Matter . | . . . . . . . Parts Self-Destructed . | . . . . . . . Prevented . | . . . . . . . Kills | -11 -10 -10 -9 -9 -7 -7 ------- Run | Scr Mat Min Mat Min Zio Dee Combat Hostiles Destroyed 5 | . 2 3 . . . . Melee 5 | . 2 3 . . . . Classes Destroyed 1 | . 1 . . . . . Swarmer 5 | . 2 3 . . . . Best Kill Streak 3 | . 2 3 . . . . Combat Bots Only 3 | . 2 3 . . . . Max Kills in Single Turn 1 | . 1 1 . . . . Gunslinging . | . . . . . . . Exploded . | . . . . . . . Melee 1 | . 1 1 . . . . Uniques/NPCs Destroyed . | . . . . . . . Combat | -11 -10 -10 -9 -9 -7 -7 -------- Run | Scr Mat Min Mat Min Zio Dee Damage Taken 1250 | . 285 222 263 . . 480 Core 602 | . 92 106 139 . . 265 Absorbed by Shields . | . . . . . . . Core Remaining (%) 60 | 100 . 20 . . . . Volleys Fired . | . . . . . . . Largest . | . . . . . . . Hottest . | . . . . . . . Shots Fired . | . . . . . . . Gun . | . . . . . . . Cannon . | . . . . . . . Launcher . | . . . . . . . Special . | . . . . . . . Kinetic . | . . . . . . . Thermal . | . . . . . . . Explosive . | . . . . . . . Electromagnetic . | . . . . . . . Robot Hit Streak . | . . . . . . . Robot Miss Streak . | . . . . . . . Penetration Max . | . . . . . . . Secondary Targets . | . . . . . . . Shots Hit Robots . | . . . . . . . Core Hits 23 | . 9 14 . . . . Critical Hits . | . . . . . . . Critical Kills . | . . . . . . . Critical Parts Destroyed . | . . . . . . . Melee Attacks . | . . . . . . . Impact . | . . . . . . . Slashing . | . . . . . . . Piercing . | . . . . . . . Sneak Attacks . | . . . . . . . Combat Hostiles . | . . . . . . . Follow-up Attacks . | . . . . . . . Damage Inflicted 97 | . 43 54 . . . . Guns . | . . . . . . . Cannons . | . . . . . . . Explosions . | . . . . . . . Melee . | . . . . . . . Ramming 97 | . 43 54 . . . . Kinetic . | . . . . . . . Thermal . | . . . . . . . Explosive . | . . . . . . . Electromagnetic . | . . . . . . . Impact . | . . . . . . . Slashing . | . . . . . . . Piercing . | . . . . . . . Highest Corruption 2 | . . 2 . . . . Average Corruption 2 | . . 2 . . . . Corruption Purged . | . . . . . . . Effects 2 | . . 2 . . . . Message Errors 1 | . . 1 . . . . Heat Flow Errors 1 | . . 1 . . . . Overload Shots . | . . . . . . . Overflow Damage . | . . . . . . . Projectiles . | . . . . . . . Explosions . | . . . . . . . Melee . | . . . . . . . Knockbacks . | . . . . . . . Impact . | . . . . . . . Kinetic . | . . . . . . . Secondary . | . . . . . . . Self-Inflicted Damage 28 | . 11 17 . . . . Shots . | . . . . . . . Rammed 41 | . 13 28 . . . . Targets Rammed 52 | . 21 31 . . . . Kicked 11 | . 8 3 . . . . Crushed . | . . . . . . . Highest Temperature 204 | . . 204 . . . . Average Temperature 104 | . . 104 . . . . Received Heat Transfer 381 | . 102 . 99 . . 180 Siege Activations . | . . . . . . . Robots Corrupted . | . . . . . . . Combat Hostiles . | . . . . . . . Parts Fried . | . . . . . . . Impact Corruptions . | . . . . . . . Robots Melted . | . . . . . . . Combat Hostiles . | . . . . . . . Parts Melted . | . . . . . . . Heat Transferred . | . . . . . . . Parts Sabotaged . | . . . . . . . Parts Stolen . | . . . . . . . Parts Stripped . | . . . . . . . Power Chain Reactions . | . . . . . . . Missiles Intercepted . | . . . . . . . Alert | -11 -10 -10 -9 -9 -7 -7 ------- Run | Scr Mat Min Mat Min Zio Dee Peak Influence 110 | . 110 76 103 26 . . Initial 36 | . . 36 24 26 . . Average 49 | . 55 64 64 25 . . Maximum Alert Level . | . . . . . . . Low Security (%) 100 | 100 100 100 100 100 . . Level 1 . | . . . . . . . Level 2 . | . . . . . . . Level 3 . | . . . . . . . Level 4 . | . . . . . . . Level 5 . | . . . . . . . High Security . | . . . . . . . Max Security . | . . . . . . . Squads Dispatched 1 | . 1 . . . . . Investigation 1 | . 1 . . . . . Extermination . | . . . . . . . Reinforcement . | . . . . . . . Assault . | . . . . . . . Garrison . | . . . . . . . Intercept . | . . . . . . . Construction Impeded . | . . . . . . . Haulers Reinforced . | . . . . . . . Stealth | -11 -10 -10 -9 -9 -7 -7 --------- Run | Scr Mat Min Mat Min Zio Dee Distress Signals 2 | . . . 2 . . . Communications Jammed . | . . . . . . . Distress Signals . | . . . . . . . Times Spotted 31 | . 7 5 7 1 . 11 Peak Tracking Total 8 | . 4 3 4 1 . 8 Tactical Retreats 4 | . 2 . 2 . . . Traps | -11 -10 -10 -9 -9 -7 -7 ------- Run | Scr Mat Min Mat Min Zio Dee Traps Triggered 1 | . 1 . . . . . Indirectly . | . . . . . . . Trap Hack Attempts . | . . . . . . . Triggered . | . . . . . . . Disarmed . | . . . . . . . Reprogrammed . | . . . . . . . Reused . | . . . . . . . Traps Extracted . | . . . . . . . Installed . | . . . . . . . Triggered . | . . . . . . . Machines | -11 -10 -10 -9 -9 -7 -7 ---------- Run | Scr Mat Min Mat Min Zio Dee Machines Disabled 1 | . . . . . . 1 Max in Single Turn . | . . . . . . . Machines Sabotaged . | . . . . . . . Garrisons Compromised . | . . . . . . . Overloaded Fab Kills . | . . . . . . . Fab Network Shutdowns . | . . . . . . . Hacking | -11 -10 -10 -9 -9 -7 -7 --------- Run | Scr Mat Min Mat Min Zio Dee Machines Accessed 6 | . 1 . 3 2 . . Terminals 3 | . 1 . 2 . . . Fabricators . | . . . . . . . Repair Stations . | . . . . . . . Recycling Units 1 | . . . 1 . . . Scanalyzers . | . . . . . . . Garrison Access . | . . . . . . . Total Hacks 12 | . 1 . 9 2 . . Successful 8 | . 1 . 5 2 . . Failed 4 | . . . 4 . . . Catastrophic . | . . . . . . . Database Lockouts . | . . . . . . . Manual 8 | . 1 . 3 . 4 . Terminals 7 | . 1 . 6 . . . Fabricators . | . . . . . . . Repair Stations . | . . . . . . . Recycling Units 3 | . . . 3 . . . Scanalyzers . | . . . . . . . Garrison Access . | . . . . . . . Terminal Hacks 4 | . . . 2 2 . . Open Door 2 | . . . . 2 . . Alert Level 2 | . . . 2 . . . Fabricator Hacks . | . . . . . . . Repair Station Hacks . | . . . . . . . Recycling Unit Hacks 1 | . . . 1 . . . Retrieve Components 1 | . . . 1 . . . Scanalyzer . | . . . . . . . Garrison Access Hacks . | . . . . . . . Unauthorized Hacks 3 | . 1 . 2 . . . Terminals 3 | . 1 . 2 . . . Botnet 3 | . 1 . 2 . . . Fabricators . | . . . . . . . Repair Stations . | . . . . . . . Recycling Units . | . . . . . . . Scanalyzers . | . . . . . . . Garrison Access . | . . . . . . . Data Cores Recovered . | . . . . . . . Used . | . . . . . . . Hacking Detections 3 | . . . 3 . . . Full Trace Events . | . . . . . . . Feedback Events . | . . . . . . . Feedback Blocked . | . . . . . . . Robot Schematics Acquired . | . . . . . . . Robots Built . | . . . . . . . Matter . | . . . . . . . Time . | . . . . . . . Total Robot Build Rating . | . . . . . . . Part Schematics Acquired . | . . . . . . . Parts Built . | . . . . . . . Matter . | . . . . . . . Time . | . . . . . . . Total Part Build Rating . | . . . . . . . Parts Repaired . | . . . . . . . Time . | . . . . . . . Parts Recycled . | . . . . . . . Recycled Matter . | . . . . . . . Retrieved Matter . | . . . . . . . Retrieved Components 3 | . . . 3 . . . Parts Scanalyzed . | . . . . . . . Part Schematics Acquired . | . . . . . . . Parts Damaged . | . . . . . . . Bothacking | -11 -10 -10 -9 -9 -7 -7 ------------ Run | Scr Mat Min Mat Min Zio Dee Used RIF Installer . | . . . . . . . Robots Hacked . | . . . . . . . Non-combat . | . . . . . . . Combat . | . . . . . . . Robot Hacks Applied . | . . . . . . . Relay Couplers Released . | . . . . . . . Robots Rewired . | . . . . . . . Allies Hacked . | . . . . . . . Hacks Repelled . | . . . . . . . Allies | -11 -10 -10 -9 -9 -7 -7 -------- Run | Scr Mat Min Mat Min Zio Dee Total Allies 1 | . . . . . . 1 Largest Group 1 | . . . . . . 1 Highest-Rated Group 118 | . . . . . . 118 Highest-Rated Ally 118 | . . . . . . 118 Total Orders 1 | . . . . 1 . . EXPLORE 1 | . . . . 1 . . Ally Attacks 9 | . . . . . . 9 Total Damage 470 | . . . . . . 470 Kills 2 | . . . . . . 2 Allies Corrupted . | . . . . . . . Allies Melted . | . . . . . . . Intel | -11 -10 -10 -9 -9 -7 -7 ------- Run | Scr Mat Min Mat Min Zio Dee Robot Analysis Total . | . . . . . . . Derelict Logs Recovered 2 | . . 1 . . 1 . Drone Launches 1 | . . . . 1 . . Drone Recoveries . | . . . . . . . Exploration | -11 -10 -10 -9 -9 -7 -7 ------------- Run | Scr Mat Min Mat Min Zio Dee Turns Passed 2031 | 42 133 188 354 280 818 216 Spaces Moved 2224 | 41 89 153 375 351 977 238 Core 2045 | 20 . 144 315 351 977 238 Treads . | . . . . . . . Legs 119 | 21 89 9 . . . . Wheels . | . . . . . . . Hover 60 | . . . 60 . . . Flight . | . . . . . . . Fastest Speed 50 | 50 120 100 50 50 50 50 Average Speed 82 | 85 120 101 88 58 80 88 Slowest Speed 350 | 120 120 120 100 350 100 100 Overloaded Moves . | . . . . . . . Propulsion Burnouts . | . . . . . . . Robots Hopped . | . . . . . . . Cave-ins Triggered . | . . . . . . . Exploration Rate (%) 44 | 3 19 47 24 96 85 38 Regions Visited 6 Branch Regions 4 Pre-discovered Areas . | . . . . . . . Known Exits Taken . | . . . . . . . Unknown Exits Taken 6 | 1 1 1 1 1 1 . Scrap Searched 3 | . . . . 1 2 . Spaces Dug . | . . . . . . . Terrain Destroyed . | . . . . . . . Melee . | . . . . . . . Projectile . | . . . . . . . AOE . | . . . . . . . Terrain Rammed . | . . . . . . . Walls Destroyed . | . . . . . . . Machines Disabled . | . . . . . . . Actions | -11 -10 -10 -9 -9 -7 -7 --------- Run | Scr Mat Min Mat Min Zio Dee Total 2411 | 48 111 183 396 425 1006 242 Wait 111 | . 2 . 18 62 25 4 Move 2218 | 40 88 152 374 350 976 238 Hop . | . . . . . . . Pick Up 14 | 4 . . 2 5 3 . Fast Attach 1 | . . . . . 1 . Attach 12 | 4 . . 2 5 1 . Detach 1 | . . . . 1 . . Swap . | . . . . . . . Drop 2 | . . . . 2 . . Fire . | . . . . . . . Melee . | . . . . . . . Ram 16 | . . 16 . . . . Kick 36 | . 21 15 . . . . Crush . | . . . . . . . Escape Stasis . | . . . . . . . Rewire . | . . . . . . . Trap . | . . . . . . . Miscellaneous . | . . . . . . . Route ------- -11/Scrapyard -10/Materials -10/Mines (discovered 2 exits: *Mat x2) -9/Materials (discovered 3 exits: *Min / *Sto x2) -9/Mines (discovered 3 exits: [*Mat x2] / *Zio) -7/Zion -7/Deep Caves History --------- Turn | Location | Event 13 | -11/Scrapyard | Discovered new exit (range 15) 43 | -11/Scrapyard | Entered Materials 168 | -10/Materials | Discovered new exit (range 8) 176 | -10/Materials | Entered Mines 207 | -10/Mines | Core integrity fell below 50% 236 | -10/Mines | Lost 3 parts (1p2n) 254 | -10/Mines | Learned location of 2 exits from Materials 308 | -10/Mines | Discovered new exit (range 9) 310 | -10/Mines | Build established: Mutant 335 | -10/Mines | Discovered new exit (range 14) 343 | -10/Mines | Assembled infested the area 364 | -10/Mines | Entered Materials 364 | -9/Materials | Evolved 2 slots: Propulsion x1, Weapon x1 365 | -9/Materials | Identified exit to Storage 714 | -9/Materials | Discovered new exit (range 8) 718 | -9/Materials | Entered Mines 720 | -9/Mines | Met a Derelict who couldn't figure out how to use a Trap Extractor 746 | -9/Mines | Discovered new exit (range 18) 800 | -9/Mines | A Derelict revealed a hidden shortcut to a safe place 883 | -9/Mines | Found the Drone Emporium 887 | -9/Mines | Found Prototype Device 888 | -9/Mines | Identified Decoy Drone Bay 962 | -9/Mines | Discovered new exit (range 35) 998 | -9/Mines | Entered Zion 1452 | -7/Zion | Acquired unknown access codes intercepted by a Zionite 1675 | -7/Zion | Opened final containment barrier to the Deep Caves 1690 | -7/Zion | Discovered new exit (range 5) 1692 | -7/Zion | Saw the warning signs outside the Deep Caves entrance 1816 | -7/Zion | Entered Deep Caves 1817 | -7/Deep Caves | Met 5H-AD0 1974 | -7/Deep Caves | Z-Facility disabled 1996 | -7/Deep Caves | Attacked by Z-Imprinter 2021 | -7/Deep Caves | Core integrity fell below 50% 2026 | -7/Deep Caves | Core integrity fell below 20% 2032 | -7/Deep Caves | Destroyed by Z-Imprinter with Zionite Laser-M Last Messages --------------- It has something to do with the Assembled, and, no kidding, the Imprinter. Whatever it is, judging from the kind of traffic that passes through here it can't be good. Despite everything I've seen I still can't figure it out, and I'm thinking there must be more than one location involved in what's going on, but it's been too dangerous to relocate without fear of detection. How about we check out these caves together? 01974_ NEW_ZION: Z-Facility proximity alert. Z-Imprinter: GET AWAY FROM HERE! I've worked too hard for our future just to have you ruin everything! 01998_ 5H-AD0: "Imprinter! Do you fully understand the dangers of what you're doing here?!" 01998_ HV Slug penetrates Wall. 02000_ 5H-AD0: "Argh..." 02000_ 5H-AD0 suddenly disappears in plain sight. 02001_ Imp. Sensor Array destroyed. 02005_ Mic. Nuclear Core destroyed. 02018_ Enh. Flamer destroyed. 02021_ Weight Redist. System destroyed. 02032_ Mak. Hammer destroyed. Map ----- +----------------------------------------------------+ | ??????? """"""""""""" | | ??????? """"""""""""" | | ??????? """""""""""""" | | ??????? """""""""" | | ??????? """"""""""""" | | ??????? """""???""""" | | ??????? """"""???""""" | | ??????? """"""?????""" | | ??????? """"""????? " | | ??????? """""?????!% | | ??????? """""????? | | ??????? """""????? | | ??????? I """"""???? | | ??????? """"""????? | | ??????? """"""??????? | | ???????? """""????????????? | | ???????? """""" ??????????????????? | | ???????? """""" ??????????????????? | | ???????? """""" "?????????????????? | | ???????? """"" "?????????????????? | | ???????? """" ""????????????????? | | ????????? """" "????????????????? | | ????????? """" ????????????????? | | ?????????? """" ????????????????? | | ?????????? """""""????????????????? | | ?????????? @""""""?????????????????? | | ?????????? ??????????????? | | ?????????? ?????????????? | | ??????????? ???????????? | | ??????????? ???????????? | | ???????????? ????????????? | | ???????????? ???????????? | | ???????????? ??????????? | | ?????????????## z### ???????????? | | ??????????????#zz ??## #???????????? | | ??????????????###????### ####????????????? | | ????????????????????????##########???????????????? | | ?????????????????????????????????????????????????? | | | | | | | | | | | | | | | | | | | | | | | | | +----------------------------------------------------+ Best States ------------- Heat Dissipation 28 Energy Generation 15 Energy Capacity 250 Matter Stores 300 Matter Capacity 300 Sight Range 22 Robot Scan Range 13 Terrain Scan Density 10 Additional Mass Support 6 Resistance: KI 20 Resistance: TH 20 Resistance: EX 20 Resistance: EM 20 Resistance: I 20 Resistance: S 20 Resistance: P 20 Evasion (%) 53 Offensive Hacking 10 Item Schematics ----------------- None Robot Schematics ------------------ None Fabricated ------------ Nothing Alien Tech Used ----------------- None Achievements -------------- Fist Fight Signs Are For Wimps Challenges ------------ None Game ------ Seed ScanGravitonCasing Manual? 0 Play Time 00:29:39 Cumulative 380.1 hours Start 2020.11.04 @ 11:42:48 End 2020.11.04 @ 12:12:08 Sessions 1 Manual Loads 0 Difficulty Adventurer Special Mode Halloween2020/ForbiddenLore Game No. 22 Rogue 1 Adventurer 21 Explorer 0 Win Type - Total 2 Types 2/0/0/0/0/0/0/0/0 Lore% 53 Gallery% 39 Achievement% 46 Wizard Run 0 Options --------- ASCII 0 Keyboard 0 Movement Numpad Keybinds 0 Fullscreen 1 Font 18/SmallcapsGlow Map View 76x50 Tactical HUD 1 Map Filters NONE Filters NONE Steam 1 RUN: 63b9abd1-f581-4c3f-9ff1-9dd98eda17a2